[Event "Serbian-ch Semifinal 2024"]
[Site "Paracin"]
[Date "2024.02.05"]
[Round "1.6"]
[White "Kovacevic, Aleksandar"]
[Black "Rabrenovic, Vladan"]
[Result "1-0"]
[ECO "A34"]
[WhiteElo "2453"]
[BlackElo "2199"]
[Annotator "TA"]
[PlyCount "85"]
[EventDate "2024.02.04"]
[EventType "swiss"]
[EventCountry "SRB"]
[SourceTitle "playchess.com"]
[Source "ChessBase"]
[SourceQuality "1"]
[TimeControl "40/5400+30:1800+30"]

{[%evp 9,85,-8,37,0,59,35,53,17,27,53,41,28,48,25,74,44,64,59,81,79,76,76,100,82,86,27,29,35,40,9,45,82,53,14,68,44,127,127,149,141,164,161,167,161,192,170,209,183,214,196,248,250,304,288,310,298,385,349,363,340,434,431,418,384,679,635,677,648,816,803,925,916,1595,1569,29989,29987,29991,879]} 1. c4 {[%emt 0:00:16]} c5 {[%emt 0:02:27]} 2. Nf3 {[%emt 0:00:26]} Nc6 {[%emt 0:00:08]} 3. Nc3 {[%emt 0:01:40]} e5 {[%emt 0:01:11]} 4. e3 {[%emt 0:00:51]} Nf6 {[%emt 0:02:48]} 5. a3 {[%emt 0:00:24]} d6 {[%emt 0:10:50]} 6. h3 {[%emt 0:06:24]} h6 {[%emt 0:09:34]} (6... d5 $11) 7. d4 $14 {[%emt 0:01:57]} e4 {[%emt 0:02:04]} 8. d5 {[%emt 0:09:47] White is slightly better.} exf3 {[%emt 0:08:31]} 9. dxc6 {[%emt 0:00:12]} bxc6 {[%emt 0:00:13]} 10. Qxf3 {[%emt 0:00:48]} Bd7 {[%emt 0:00:07]} 11. e4 {[%emt 0:05:39]} Be7 {[%emt 0:01:18]} (11... g5 $11 {was preferrable.}) 12. Bf4 {[%emt 0:01:35]} O-O {[%emt 0:09:06]} 13. O-O-O {[%emt 0:03:36]} Ne8 {[%emt 0:02:29]} 14. e5 {[%emt 0:04:06]} dxe5 {[%emt 0:02:10]} 15. Bxe5 {[%emt 0:00:09]} Bf6 {[%emt 0:06:51]} 16. Qe3 {[%emt 0:13:14] White is much more active.} Qe7 {[%emt 0:05:29]} 17. Re1 {[%emt 0:00:13]} (17. f4 $16) 17... Be6 $11 {[%emt 0:09:52]} 18. Bd3 {[%emt 0:06:27]} Rd8 {[%emt 0:00:33] [#] White must now prevent ...Bxe5.} 19. Rd1 {[%emt 0:08:04]} Bxe5 {[%emt 0:08:58]} (19... Nd6 $5) 20. Qxe5 {[%emt 0:00:17]} Nf6 {[%emt 0:00:02]} 21. Bf5 $40 {[%emt 0:10:07][%mdl 128] White has some attack.} Nd7 {[%emt 0:07:18]} ({Black should play} 21... Rd4 $11) 22. Qe3 $14 {[%emt 0:00:30]} Qf6 {[%emt 0:00:47] Black is now going downhill.} (22... Ne5 $1 $14 23. Qxe5 (23. Rxd8 Rxd8 24. Bxe6 Qxe6 $11) 23... Qg5+ 24. f4 Qxf5) 23. Bxe6 $16 {[%emt 0:00:47]} fxe6 {[%emt 0:00:06]} 24. Rhe1 {[%emt 0:01:55]} e5 {[%emt 0:03:23]} 25. Ne4 {[%emt 0:00:57]} Qe7 {[%emt 0:00:51]} 26. b3 {[%emt 0:05:31]} Rb8 {[%emt 0:06:24][%cal Bd8b8,Bb8b7,Bb7c7][%mdl 32]} 27. Rd3 {[%emt 0:01:39]} Rb7 {[%emt 0:00:00]} 28. Red1 {[%emt 0:02:28]} Rfb8 {[%emt 0:00:00]} 29. Kc2 {[%emt 0:02:25]} Kh8 {[%emt 0:00:00]} (29... Rf8 {was worth a try.} 30. f3 Kh8) 30. g4 $18 {[%emt 0:01:46]} a5 {[%emt 0:00:00][%cal Oa5a4]} 31. a4 {[%emt 0:00:54]} Rf8 {[%emt 0:00:00]} 32. Nd6 {[%emt 0:01:59]} Rc7 {[%emt 0:00:22]} 33. Nf5 {[%emt 0:00:07]} Qe8 {[%emt 0:00:42]} 34. f3 {[%emt 0:00:41]} Kh7 {[%emt 0:01:01]} 35. Rd6 {[%emt 0:00:53]} Rf6 {[%emt 0:00:13]} 36. Qd2 {[%emt 0:03:52][%csl LRa5,LRd7][%cal Rd6d7]} Rxf5 $2 {[%emt 0:01:28]} (36... Rxd6 37. Qxd6 (37. Nxd6 Qa8 $18) 37... Ra7 38. Qxc6 h5) 37. gxf5 {[%emt 0:00:33]} Nf6 {[%emt 0:00:01]} 38. Qxa5 {[%emt 0:02:08]} Re7 {[%emt 0:00:17]} 39. Qxc5 {[%emt 0:00:25]} e4 {[%emt 0:00:53][%cal Be5e4,Be4f3,Bf3f2][%mdl 32]} 40. Qxc6 {[%emt 0:00:31]} Qh5 {[%emt 0:00:14]} 41. Rxf6 {[%emt 0:30:43]} exf3 {[%emt 0:30:27]} 42. Rf8 {[%emt 0:01:34]} f2 {[%emt 0:00:40] [#]} 43. Qg6+ {[%emt 0:00:12] Weighted Error Value: White=0.14 (very precise) /Black=0.47.  Mistake:       	White=1     	Black=6      Inaccurate:     	White=4     	Black=1      OK:         	White=8     	Black=4      Best:        	White=5     	Black=2} 1-0

[Event "Serbian-ch Semifinal 2024"]
[Site "Paracin"]
[Date "2024.02.05"]
[Round "1.7"]
[White "Pogorelskikh, Sofia"]
[Black "Injac, Teodora"]
[Result "1/2-1/2"]
[ECO "B55"]
[WhiteElo "2198"]
[BlackElo "2439"]
[Annotator "TA"]
[PlyCount "64"]
[EventDate "2024.02.04"]
[EventType "swiss"]
[EventCountry "SRB"]
[SourceTitle "playchess.com"]
[Source "ChessBase"]
[SourceQuality "1"]
[TimeControl "40/5400+30:1800+30"]

{[%evp 14,64,19,41,39,0,0,0,0,0,0,0,0,0,0,0,0,-63,-60,-75,-48,-58,-58,-33,-34,-43,-39,-30,-27,-32,41,45,29,34,28,40,73,64,74,69,52,72,75,75,64,71,73,62,67,0,0,0,0]} 1. e4 {[%emt 0:00:05]} c5 {[%emt 0:00:46]} 2. Nf3 {[%emt 0:00:12]} d6 {[%emt 0:00:12]} 3. d4 {[%emt 0:00:16]} cxd4 {[%emt 0:00:03]} 4. Nxd4 {[%emt 0:00:14]} Nf6 {[%emt 0:00:17]} 5. f3 {[%emt 0:01:03]} Nc6 {[%emt 0:00:51]} 6. c4 {[%emt 0:05:25]} Qb6 {[%emt 0:00:42]} 7. Nc2 {[%emt 0:01:04]} e6 {[%emt 0:00:33]} 8. Nc3 {[%emt 0:02:16]} Be7 {[%emt 0:00:24]} 9. Rb1 {[%emt 0:06:45]} O-O {[%emt 0:01:01][%cal Od6d5]} 10. Be3 {[%emt 0:01:19]} Qc7 {[%emt 0:02:38][%cal Od6d5]} 11. Be2 {[%emt 0:03:26]} Rd8 {[%emt 0:00:28][%cal Od6d5]} 12. O-O {[%emt 0:02:38]} d5 {[%emt 0:02:03]} 13. cxd5 {[%emt 0:04:22]} exd5 {[%emt 0:01:26]} 14. exd5 {[%emt 0:03:20]} (14. Nxd5 Nxd5 15. exd5 Be6 $17) 14... Be6 {[%emt 0:01:17]} 15. Qe1 {[%emt 0:09:11]} ({White should play} 15. dxe6 $11 Rxd1 16. exf7+ Kxf7 17. Rbxd1) 15... Nxd5 $15 {[%emt 0:02:44]} 16. Nxd5 {[%emt 0:03:14]} Bxd5 {[%emt 0:00:28]} 17. b3 {[%emt 0:02:57]} Re8 {[%emt 0:31:36]} 18. Qf2 {[%emt 0:06:39]} Qa5 {[%emt 0:52:01]} 19. a4 {[%emt 0:18:09]} Qc3 {[%emt 0:00:00][%csl LRb3,LRc2]} 20. Rfc1 {[%emt 0:02:44]} Bf8 {[%emt 0:00:00]} (20... Bxb3 $2 21. Nd4 Qa5 22. Nxc6 (22. Rxb3 Bf6 $18) (22. Nxb3 Qxa4 23. Nc5 Bxc5 $18) 22... bxc6 23. Rxb3 $18) 21. Bb5 $1 {[%emt 0:02:07]} a6 {[%emt 0:00:00]} (21... Bxb3 $2 22. Bd4 $18 (22. Bd2 Qxc2 23. Rxc2 Bxc2 $16) (22. Bd2 Qxc2 23. Rxc2 Bxc2 $16)) (21... Rac8 $15) 22. Bd4 $1 $14 {[%emt 0:08:14]} Qa5 {[%emt 0:00:00]} ({Don't play} 22... Nxd4 23. Nxd4 $16) 23. Bb6 {[%emt 0:01:20]} Qc3 {[%emt 0:00:00]} 24. Nd4 {[%emt 0:06:28]} Qb4 {[%emt 0:00:00]} 25. Nxc6 {[%emt 0:00:33]} bxc6 {[%emt 0:00:00]} 26. Bxc6 {[%emt 0:00:34]} Bxc6 {[%emt 0:00:00]} 27. Rxc6 {[%emt 0:00:09]} Rac8 {[%emt 0:00:00]} 28. Rxc8 {[%emt 0:01:20]} Rxc8 {[%emt 0:00:00]} 29. Qd4 {[%emt 0:01:31]} Qa3 {[%emt 0:00:00]} 30. Qd3 {[%emt 0:01:34] Inhibits Rc2. White is more active.} Qa2 {[%emt 0:00:00] [#] Strongly threatening ...Rc2.} 31. Rf1 {[%emt 0:05:17]} (31. Kh1 $1 $14) 31... Rc2 $11 {[%emt 0:00:00]} 32. Bf2 {[%emt 0:00:18]} (32. Qxa6 $2 {gets mated.} Rxg2+ (32... Qxb3 33. Kh1 $16) 33. Kh1 Rxh2+ 34. Kg1 Qg2#) 32... a5 {[%emt 0:03:43] Weighted Error Value: White=0.10 (very precise) /Black=0.09 (flawless) .  Mistake:       	White=2     	Black=1      Inaccurate:     	White=1     	Black=2      OK:         	White=9     	Black=12     Best:        	White=3     	Black=1      Strong:       	White=2     	---} 1/2-1/2

[Event "Serbian-ch Semifinal 2024"]
[Site "Paracin"]
[Date "2024.02.05"]
[Round "1.8"]
[White "Atalik, Suat"]
[Black "Mijatovic, Dusan"]
[Result "1-0"]
[ECO "E20"]
[WhiteElo "2439"]
[BlackElo "2165"]
[Annotator "TA"]
[PlyCount "67"]
[EventDate "2024.02.04"]
[EventType "swiss"]
[EventCountry "SRB"]
[SourceTitle "playchess.com"]
[Source "ChessBase"]
[SourceQuality "1"]
[TimeControl "40/5400+30:1800+30"]

{[%evp 10,67,17,6,8,17,47,50,54,61,61,57,62,56,58,29,102,96,121,121,139,131,164,169,163,163,188,183,181,166,178,179,331,235,686,654,710,699,759,758,1081,703,920,920,832,832,817,817,801,752,5643,5635,6195,2206,6195,0,6195,6195,5018,5018]} 1. d4 {[%emt 0:00:03]} Nf6 {[%emt 0:00:08]} 2. c4 {[%emt 0:00:21]} e6 {[%emt 0:00:09]} 3. Nc3 {[%emt 0:00:24]} Bb4 {[%emt 0:00:10]} 4. g3 {[%emt 0:00:54]} Bxc3+ {[%emt 0:02:03]} 5. bxc3 {[%emt 0:01:07]} O-O {[%emt 0:00:11]} 6. Bg2 {[%emt 0:00:54]} d6 {[%emt 0:00:19]} 7. Nf3 {[%emt 0:01:19][%cal Bg1f3,Bf3e5,Be5d3,Bd3f4][%mdl 32]} e5 {[%emt 0:11:50]} 8. dxe5 {[%emt 0:14:25]} dxe5 {[%emt 0:00:11] White is slightly better.} 9. Qxd8 {[%emt 0:00:34]} Rxd8 {[%emt 0:00:04]} 10. Nxe5 {[%emt 0:00:07]} Re8 {[%emt 0:12:37][%cal Bd8e8,Be8e2,Be2c2][%mdl 32]} 11. Bf4 {[%emt 0:04:13][%cal Bc1f4,Bf4c7,Bc7e5,Be5f6][%mdl 32] White is more active.} Na6 {[%emt 0:08:04]} 12. O-O {[%emt 0:07:56]} Nc5 {[%emt 0:07:04]} (12... Nh5 $11) 13. Nd3 $16 {[%emt 0:02:21] White now steadily converts the win.} Na4 {[%emt 0:04:32][%cal Bc5a4,Ba4c3,Bc3e4][%mdl 32]} 14. Bxc7 {[%emt 0:05:17]} Rxe2 {[%emt 0:11:55]} 15. Nf4 {[%emt 0:10:27]} Rc2 {[%emt 0:07:04]} 16. Be5 {[%emt 0:09:56]} Nxc3 {[%emt 0:04:56]} 17. Rfe1 {[%emt 0:06:04]} Bf5 {[%emt 0:10:27]} 18. Bxb7 {[%emt 0:02:03] This pair of bishops is nice.} Rd8 {[%emt 0:00:35]} 19. c5 $40 {[%emt 0:14:23][%cal Bc4c5,Bc5c6][%mdl 160] Threatens to win with c6. White has strong attack.} Nce4 {[%emt 0:10:54]} 20. c6 {[%emt 0:02:18] Hoping for c7.} g5 $2 {[%emt 0:05:06]} (20... Re8) 21. Bxf6 {[%emt 0:09:18]} Rdd2 {[%emt 0:01:34] [#]} (21... Nxf6 22. Ng2 (22. Re5 gxf4 23. Rxf5 Ne8 $18) 22... Ng4) 22. Rxe4 $1 $18 {[%emt 0:03:52]} Bxe4 {[%emt 0:00:13]} 23. Re1 {[%emt 0:00:39]} gxf4 {[%emt 0:01:23]} 24. Rxe4 {[%emt 0:00:07][%cal Re4e8]} h5 {[%emt 0:00:27]} 25. Rxf4 {[%emt 0:00:16]} Kh7 {[%emt 0:00:32]} 26. Bd4 {[%emt 0:00:31]} Kg6 {[%emt 0:00:25]} 27. Bxa7 {[%emt 0:00:26]} Rc1+ {[%emt 0:00:29]} 28. Kg2 {[%emt 0:00:06] [#] Black must now prevent Be3.} Rxa2 {[%emt 0:00:18]} 29. Be3 {[%emt 0:00:23]} Rc3 {[%emt 0:00:37]} 30. Bd4 {[%emt 0:00:23]} Rc4 {[%emt 0:00:37]} 31. Rf6+ {[%emt 0:00:07]} Kg7 {[%emt 0:00:09]} 32. Rf4+ {[%emt 0:00:16]} Kg6 $1 {[%emt 0:00:09]} 33. Be5 {[%emt 0:00:20]} Rc5 {[%emt 0:00:38]} 34. c7 {[%emt 0:00:24] Weighted Error Value: White=0.14 (very precise) /Black=0.63.  Mistake:       	---       	Black=3      Inaccurate:     	White=1     	Black=1      OK:         	White=9     	Black=5      Best:        	White=3     	---        Brilliant:      	White=1     	---} 1-0

[Event "Serbian-ch Semifinal 2024"]
[Site "Paracin"]
[Date "2024.02.05"]
[Round "1.9"]
[White "Gusev, Mikhail"]
[Black "Cabarkapa, Novak"]
[Result "0-1"]
[ECO "E94"]
[WhiteElo "2117"]
[BlackElo "2434"]
[Annotator "RC"]
[PlyCount "108"]
[EventDate "2024.02.04"]
[EventType "swiss"]
[EventCountry "SRB"]
[SourceTitle "playchess.com"]
[Source "ChessBase"]
[SourceQuality "1"]
[TimeControl "40/5400+30:1800+30"]

1. d4 {[%emt 0:00:04]} Nf6 {[%emt 0:00:12]} 2. c4 {[%emt 0:00:17]} g6 {[%emt 0:00:09]} 3. Nf3 {[%emt 0:00:09]} Bg7 {[%emt 0:00:05]} 4. Nc3 {[%emt 0:00:29]} O-O {[%emt 0:00:07]} 5. e4 {[%emt 0:00:20]} d6 {[%emt 0:00:05]} 6. Be2 {[%emt 0:00:05]} Nbd7 {[%emt 0:01:11]} 7. O-O {[%emt 0:01:48]} e5 {[%emt 0:00:03]} 8. d5 {[%emt 0:03:23]} Nc5 {[%emt 0:00:08]} 9. Qc2 {[%emt 0:02:40]} a5 {[%emt 0:00:04]} 10. Ne1 {[%emt 0:07:37]} Nfd7 {[%emt 0:09:02]} 11. Be3 {[%emt 0:02:19]} f5 {[%emt 0:00:11]} 12. f3 {[%emt 0:02:01]} f4 {[%emt 0:12:38]} 13. Bf2 {[%emt 0:02:09]} g5 {[%emt 0:00:38]} 14. Nd3 {[%emt 0:03:26]} b6 {[%emt 0:06:32]} 15. a3 {[%emt 0:05:24]} Nxd3 {[%emt 0:12:00]} 16. Qxd3 {[%emt 0:01:32]} a4 {[%emt 0:00:59]} 17. Kh1 {[%emt 0:04:08]} Nf6 {[%emt 0:01:51]} 18. Rg1 {[%emt 0:01:00]} Nh5 {[%emt 0:06:07]} 19. Rae1 {[%emt 0:25:14]} Rf6 {[%emt 0:02:42]} 20. Nd1 {[%emt 0:09:56]} Bd7 {[%emt 0:10:49]} 21. Qd2 {[%emt 0:04:48]} Qe7 {[%emt 0:12:13]} 22. g4 {[%emt 0:04:35]} fxg3 {[%emt 0:00:05]} 23. Bxg3 {[%emt 0:00:46]} Nf4 {[%emt 0:03:09]} 24. Bxf4 {[%emt 0:03:44]} Rxf4 {[%emt 0:04:58]} 25. Nf2 {[%emt 0:00:35]} h6 {[%emt 0:00:53]} 26. Rg3 {[%emt 0:04:04]} Raf8 {[%emt 0:02:38]} 27. Reg1 {[%emt 0:02:07]} Kf7 {[%emt 0:06:47]} 28. Qe3 {[%emt 0:03:18]} Ke8 {[%emt 0:00:25]} 29. Nd3 {[%emt 0:01:53]} Bf6 {[%emt 0:03:02]} 30. Qf2 {[%emt 0:03:03]} Rh4 {[%emt 0:00:14]} 31. Ne1 {[%emt 0:00:29]} h5 {[%emt 0:02:20]} 32. Ng2 {[%emt 0:00:57]} g4 {[%emt 0:01:51]} 33. Nxh4 {[%emt 0:00:34]} Bxh4 {[%emt 0:00:05]} 34. Qg2 {[%emt 0:00:43]} Bxg3 {[%emt 0:00:30]} 35. Qxg3 {[%emt 0:00:56]} h4 {[%emt 0:00:52]} 36. Qg2 {[%emt 0:00:12]} Qh7 {[%emt 0:00:44]} 37. Rf1 {[%emt 0:01:30]} g3 {[%emt 0:00:38]} 38. Bd1 {[%emt 0:00:40]} Rg8 {[%emt 0:01:06]} 39. Re1 {[%emt 0:00:31]} h3 {[%emt 0:00:44]} 40. Qd2 {[%emt 0:00:05]} gxh2 {[%emt 0:00:37]} 41. f4 {[%emt 0:04:06]} Rg2 {[%emt 0:07:20]} 42. Qe3 {[%emt 0:01:27]} exf4 {[%emt 0:02:00]} 43. Qxf4 {[%emt 0:01:35]} Qg6 {[%emt 0:02:00]} 44. Qe3 {[%emt 0:01:10]} Rxb2 {[%emt 0:03:55]} 45. Bf3 {[%emt 0:02:19]} Rg2 {[%emt 0:01:37]} 46. Qd4 {[%emt 0:01:45]} Ke7 {[%emt 0:00:56]} 47. Rf1 {[%emt 0:01:48]} Rg1+ {[%emt 0:01:45]} 48. Rxg1 {[%emt 0:00:02]} Qxg1+ {[%emt 0:00:13]} 49. Qxg1 {[%emt 0:00:04]} hxg1=Q+ {[%emt 0:00:08]} 50. Kxg1 {[%emt 0:00:07]} Kf6 {[%emt 0:00:04]} 51. Kf2 {[%emt 0:00:06]} Ke5 {[%emt 0:00:04]} 52. Ke3 {[%emt 0:00:07]} Bc8 {[%emt 0:00:07]} 53. Bh5 {[%emt 0:00:12]} Ba6 {[%emt 0:00:19]} 54. Be2 {[%emt 0:00:15]} Bxc4 {[%emt 0:00:13]} 0-1

[Event "Serbian-ch Semifinal 2024"]
[Site "Paracin"]
[Date "2024.02.05"]
[Round "1.10"]
[White "Radovanovic, Nikola"]
[Black "Krstic, Andrija Marko"]
[Result "1-0"]
[ECO "B53"]
[WhiteElo "2446"]
[BlackElo "2113"]
[Annotator "TA"]
[PlyCount "81"]
[EventDate "2024.02.04"]
[EventType "swiss"]
[EventCountry "SRB"]
[SourceTitle "playchess.com"]
[Source "ChessBase"]
[SourceQuality "1"]
[TimeControl "40/5400+30:1800+30"]

{[%evp 9,81,0,18,18,15,0,5,0,17,0,0,0,6,0,0,-45,-18,-29,0,0,11,0,18,17,27,0,0,-4,81,96,79,65,76,55,51,37,77,75,91,85,80,31,64,52,80,26,24,29,94,37,253,191,208,193,195,182,218,160,180,158,173,146,141,143,232,0,0,0,1257,1250,1252,1252,29997,29998]} 1. e4 {[%emt 0:00:06]} c5 {[%emt 0:00:11]} 2. Nf3 {[%emt 0:00:49]} d6 {[%emt 0:00:05]} 3. d4 {[%emt 0:01:49]} cxd4 {[%emt 0:00:06]} 4. Qxd4 {[%emt 0:00:29]} Nf6 {[%emt 0:00:10]} 5. Be2 {[%emt 0:00:18]} Nc6 {[%emt 0:00:28]} 6. Qe3 {[%emt 0:00:06]} g6 {[%emt 0:03:25]} 7. O-O {[%emt 0:00:19]} Bg7 {[%emt 0:00:05]} 8. h3 {[%emt 0:00:12] The position is equal.} O-O {[%emt 0:00:16]} 9. Rd1 {[%emt 0:00:15]} Nd7 {[%emt 0:01:33]} 10. Nc3 {[%emt 0:02:19]} b6 {[%emt 0:05:09]} 11. a3 {[%emt 0:05:33]} Bb7 {[%emt 0:01:04]} 12. Qg5 {[%emt 0:10:13]} Nce5 {[%emt 0:09:26]} 13. Nd4 {[%emt 0:09:51]} Rc8 {[%emt 0:05:04]} 14. Qh4 {[%emt 0:04:28]} Re8 {[%emt 0:25:05]} 15. Bg5 {[%emt 0:06:44]} Bf6 {[%emt 0:04:34]} 16. Bxf6 {[%emt 0:06:06]} Nxf6 {[%emt 0:00:09]} 17. f4 {[%emt 0:00:49]} Nc4 {[%emt 0:02:39]} 18. e5 {[%emt 0:11:39] And now Bxc4 would win.} Ne4 {[%emt 0:04:59]} (18... dxe5 $2 19. Ne6 fxe6 20. Rxd8 Rexd8 21. fxe5 Nxe5 22. Qa4 $18) (18... Nxb2 $11 {keeps the balance.} 19. exf6 Rxc3) 19. Nxe4 $16 {[%emt 0:04:02]} Bxe4 {[%emt 0:00:07] [#]} 20. f5 $1 {[%emt 0:01:21]} d5 $1 {[%emt 0:06:07]} 21. e6 {[%emt 0:05:14] Threatens to win with exf7+.} f6 {[%emt 0:07:35]} 22. fxg6 {[%emt 0:08:41]} Bxg6 {[%emt 0:04:50]} 23. Bd3 {[%emt 0:00:17] Hoping for Bxg6.} Ne5 {[%emt 0:00:51]} (23... Nxb2 24. Bxg6 hxg6 25. Qh6 Qd6 26. Qxg6+ Kh8 27. Nf5 Qc5+ 28. Kh1) 24. Bxg6 $1 $40 {[%emt 0:02:51][%mdl 128] White wants a kill.} Nxg6 {[%emt 0:01:34]} 25. Qh5 {[%emt 0:10:11]} ({White should play} 25. Qh6 $16 {Intending Nf5 and mate.} Kh8 26. Rf1) 25... Qd6 {[%emt 0:01:25]} 26. c3 {[%emt 0:01:03]} Kh8 {[%emt 0:01:09]} 27. Rd2 {[%emt 0:02:42]} (27. Rf1 $16) 27... Rg8 {[%emt 0:02:00]} 28. Rf1 {[%emt 0:00:26][%cal Ba1f1,Bf1f5,Bf5h5][%mdl 32]} Rcd8 {[%emt 0:02:35]} (28... Ne5 $11 {remains equal.}) 29. Kh1 {[%emt 0:00:29]} ({Better is} 29. Qh6 $16) 29... Nf8 $2 {[%emt 0:02:25]} (29... Ne5 $14) 30. Re2 {[%emt 0:00:46]} Rg5 {[%emt 0:00:18] [#]} 31. Qh6 {[%emt 0:00:38][%cal Of1f6]} Rg6 {[%emt 0:01:17]} 32. Qh4 {[%emt 0:00:25]} Re8 {[%emt 0:02:59]} 33. Rf5 {[%emt 0:00:33]} Qc5 {[%emt 0:02:59]} 34. Rh5 {[%emt 0:04:17]} Qc4 {[%emt 0:00:19]} 35. Rf2 {[%emt 0:00:44]} b5 {[%emt 0:01:38]} 36. Rf4 {[%emt 0:00:56]} Qa2 {[%emt 0:00:36] [#]} (36... a5 $16 {was worth a try.}) 37. Kh2 $2 {[%emt 0:00:45] Active counter play!} (37. Nxb5 $2 Qxb2 38. Qf2 Qxb5 $19) ({White should try} 37. Rg4 $1 $18 {aiming for Nf5.} Rxg4 38. Qxg4 (38. hxg4 Qxb2 39. g5 fxg5 $11)) 37... Qxb2 $11 {[%emt 0:01:12]} 38. Rg4 {[%emt 0:00:09]} (38. Rxd5 $2 Qxg2#) 38... Qb1 {[%emt 0:01:57][%mdl 8192]} (38... Rxg4 $11 39. Qxg4 Qxc3) 39. Nf5 $18 {[%emt 0:00:22]} (39. Rxd5 Qc1 $14) 39... Rxg4 {[%emt 0:00:40]} 40. Qxg4 {[%emt 0:00:15]} ({Stronger than} 40. hxg4 Qe4 41. Nd4 (41. Nxe7 $2 Qf4+ 42. Qg3 Qxg3+ 43. Kxg3 Rxe7 $19) 41... a6 $17 (41... Nxe6 $2 {perishes.} 42. Nxe6 Rc8 43. g5 $18)) 40... Nxe6 {[%emt 0:00:29]} 41. Qg6 {[%emt 0:30:25] Weighted Error Value: White=0.21 (precise) /Black=0.40.  Loses game:     	---       	Black=2      Missed win:     	White=1     	---        Mistake:       	White=3     	Black=3      Inaccurate:     	White=2     	Black=5      OK:         	White=9     	Black=8      Best:        	White=3     	Black=1      Strong:       	White=1     	Black=1      Brilliant:      	White=1     	---} 1-0

[Event "Serbian-ch Semifinal 2024"]
[Site "Paracin"]
[Date "2024.02.05"]
[Round "1.11"]
[White "Mitrovic, Marjan"]
[Black "Pap, Misa"]
[Result "0-1"]
[ECO "A88"]
[WhiteElo "2138"]
[BlackElo "2422"]
[Annotator "RC"]
[PlyCount "68"]
[EventDate "2024.02.04"]
[EventType "swiss"]
[EventCountry "SRB"]
[SourceTitle "playchess.com"]
[Source "ChessBase"]
[SourceQuality "1"]
[TimeControl "40/5400+30:1800+30"]

1. Nf3 {[%emt 0:00:30]} f5 {[%emt 0:02:57]} 2. g3 {[%emt 0:00:30]} Nf6 {[%emt 0:00:15]} 3. Bg2 {[%emt 0:00:10]} d6 {[%emt 0:01:40]} 4. d4 {[%emt 0:00:08]} g6 {[%emt 0:00:06]} 5. c4 {[%emt 0:00:35]} Bg7 {[%emt 0:00:04]} 6. Nc3 {[%emt 0:00:16]} O-O {[%emt 0:00:31]} 7. O-O {[%emt 0:01:47]} c6 {[%emt 0:01:28]} 8. Qc2 {[%emt 0:08:00]} Qc7 {[%emt 0:09:47]} 9. b3 {[%emt 0:12:50]} Na6 {[%emt 0:01:45]} 10. Rd1 {[%emt 0:16:11]} Nb4 {[%emt 0:01:44]} 11. Qd2 {[%emt 0:03:58]} a5 {[%emt 0:00:35]} 12. a3 {[%emt 0:00:36]} Na6 {[%emt 0:00:10]} 13. Bb2 {[%emt 0:02:44]} e5 {[%emt 0:07:29]} 14. b4 {[%emt 0:08:34]} e4 {[%emt 0:00:27]} 15. Ne1 {[%emt 0:00:29]} d5 {[%emt 0:09:35]} 16. b5 {[%emt 0:05:45]} cxb5 {[%emt 0:00:59]} 17. cxb5 {[%emt 0:00:52]} Nb8 {[%emt 0:00:06]} 18. Rdc1 {[%emt 0:05:37]} Qd8 {[%emt 0:05:52]} 19. Na4 {[%emt 0:14:03]} Nbd7 {[%emt 0:03:48]} 20. Rc2 {[%emt 0:03:52]} Ne8 {[%emt 0:01:11]} 21. e3 {[%emt 0:07:30]} Nd6 {[%emt 0:00:13]} 22. Bf1 {[%emt 0:00:19]} Nf6 {[%emt 0:02:42]} 23. Rac1 {[%emt 0:00:44]} g5 {[%emt 0:00:45]} 24. Nc5 {[%emt 0:03:12]} f4 {[%emt 0:00:51]} 25. exf4 {[%emt 0:02:10]} gxf4 {[%emt 0:00:46]} 26. Ng2 {[%emt 0:00:22]} Bh6 {[%emt 0:08:40]} 27. Qe1 {[%emt 0:01:36]} Nf5 {[%emt 0:07:07]} 28. Rd1 {[%emt 0:00:32]} f3 {[%emt 0:00:26]} 29. Ne3 {[%emt 0:00:14]} Nxe3 {[%emt 0:00:21]} 30. fxe3 {[%emt 0:00:01]} Ng4 {[%emt 0:00:26]} 31. Qc3 {[%emt 0:00:50]} Nxe3 {[%emt 0:02:34]} 32. Rdd2 {[%emt 0:00:24]} Nxf1 {[%emt 0:01:58]} 33. Kxf1 {[%emt 0:00:07]} Bh3+ {[%emt 0:00:08]} 34. Kg1 {[%emt 0:00:28]} e3 {[%emt 0:00:10]} 0-1